[Event "Austrian Women Bundesliga 2023-24"]
[Site "Austria"]
[Date "2024.03.24"]
[Round "6.15"]
[White "Wu, Min"]
[Black "Katter, Marlene"]
[Result "1/2-1/2"]
[ECO "C01"]
[WhiteElo "1938"]
[BlackElo "1902"]
[Annotator "RC"]
[PlyCount "128"]
[EventDate "2023.11.21"]
[EventType "team-tourn"]
[EventCountry "AUT"]
[SourceTitle "playchess.com"]
[Source "ChessBase"]
[SourceQuality "1"]
[TimeControl "40/5400+30:1800+30"]

1. e4 {[%emt 0:00:03]} e6 {[%emt 0:00:08]} 2. d4 {[%emt 0:00:05]} d5 {[%emt 0:00:04]} 3. exd5 {[%emt 0:00:04]} exd5 {[%emt 0:00:10]} 4. Nf3 {[%emt 0:00:06]} Bd6 {[%emt 0:02:02]} 5. c4 {[%emt 0:00:32]} c6 {[%emt 0:02:19]} 6. Nc3 {[%emt 0:01:24]} Nf6 {[%emt 0:17:49]} 7. Bd3 {[%emt 0:09:52]} dxc4 {[%emt 0:10:13]} 8. Bxc4 {[%emt 0:00:10]} O-O {[%emt 0:01:27]} 9. O-O {[%emt 0:00:25]} Bg4 {[%emt 0:06:53]} 10. h3 {[%emt 0:17:20]} Bf5 {[%emt 0:16:57]} 11. Nh4 {[%emt 0:03:32]} Be6 {[%emt 0:01:49]} 12. Bxe6 {[%emt 0:11:47]} fxe6 {[%emt 0:00:10]} 13. Qe2 {[%emt 0:03:50]} Re8 {[%emt 0:01:40]} 14. Nf3 {[%emt 0:03:48]} Nd5 {[%emt 0:03:35]} 15. Ne4 {[%emt 0:04:39]} Bf4 {[%emt 0:09:14]} 16. Nc5 {[%emt 0:05:22]} Qe7 {[%emt 0:02:06]} 17. Qe4 {[%emt 0:07:31]} Bxc1 {[%emt 0:08:38]} 18. Raxc1 {[%emt 0:00:05]} b6 {[%emt 0:00:54]} 19. Nd3 {[%emt 0:02:40]} Nf6 {[%emt 0:01:41]} 20. Qe2 {[%emt 0:02:26]} Qd6 {[%emt 0:01:01]} 21. Nde5 {[%emt 0:01:30]} a6 {[%emt 0:02:22]} 22. Qc4 {[%emt 0:07:26]} Rc8 {[%emt 0:01:14]} 23. Qb3 {[%emt 0:01:25]} Nd5 {[%emt 0:00:42]} 24. Nc4 {[%emt 0:01:31]} Qd8 {[%emt 0:01:32]} 25. Rfe1 {[%emt 0:00:29]} b5 {[%emt 0:01:06]} 26. Ne3 {[%emt 0:03:56]} Ra7 {[%emt 0:01:46]} 27. Nxd5 {[%emt 0:00:31]} exd5 {[%emt 0:00:13]} 28. Qe3 {[%emt 0:01:56]} Rf7 {[%emt 0:01:41]} 29. Ne5 {[%emt 0:01:37]} Rf8 {[%emt 0:02:01]} 30. Ng4 {[%emt 0:02:47]} Re8 {[%emt 0:02:47]} 31. Qg3 {[%emt 0:00:32]} Kh8 {[%emt 0:00:53]} 32. Ne5 {[%emt 0:00:44]} Rf8 {[%emt 0:00:26]} 33. Qg4 {[%emt 0:00:27]} Qd6 {[%emt 0:00:44]} 34. Qh5 {[%emt 0:01:03]} Kg8 {[%emt 0:00:23]} 35. Re2 {[%emt 0:01:01]} Nd7 {[%emt 0:00:20]} 36. Nxd7 {[%emt 0:03:49]} Qxd7 {[%emt 0:00:03]} 37. Rce1 {[%emt 0:00:44]} Rf7 {[%emt 0:00:39]} 38. Re6 {[%emt 0:01:20]} Rcf8 {[%emt 0:00:27]} 39. f3 {[%emt 0:00:27]} Rf5 {[%emt 0:01:01]} 40. Qh4 {[%emt 0:00:55]} Rf4 {[%emt 0:00:28]} 41. Qg3 {[%emt 0:04:01]} R4f7 {[%emt 0:05:29]} 42. Qg5 {[%emt 0:04:04]} Qa7 {[%emt 0:02:49]} 43. Qe3 {[%emt 0:02:09]} Qd7 {[%emt 0:01:47]} 44. Rc1 {[%emt 0:01:56]} Rc8 {[%emt 0:00:39]} 45. Qe5 {[%emt 0:00:35]} Kf8 {[%emt 0:04:43]} 46. Re1 {[%emt 0:05:33]} Rd8 {[%emt 0:02:00]} 47. h4 {[%emt 0:02:20]} Kg8 {[%emt 0:03:18]} 48. h5 {[%emt 0:01:30]} h6 {[%emt 0:02:46]} 49. Qg3 {[%emt 0:03:16]} Kh8 {[%emt 0:00:47]} 50. Qg6 {[%emt 0:01:35]} Rc8 {[%emt 0:01:37]} 51. Kf1 {[%emt 0:01:56]} a5 {[%emt 0:01:25]} 52. b3 {[%emt 0:00:55]} Kg8 {[%emt 0:02:10]} 53. Qg3 {[%emt 0:00:27]} Kf8 {[%emt 0:00:22]} 54. Qg6 {[%emt 0:01:03]} Kg8 {[%emt 0:01:07]} 55. Rc1 {[%emt 0:01:22]} Rf4 {[%emt 0:01:24]} 56. Rexc6 {[%emt 0:01:12]} Rxc6 {[%emt 0:00:31]} 57. Rxc6 {[%emt 0:00:12]} Rxd4 {[%emt 0:00:37]} 58. Ra6 {[%emt 0:01:38]} Qc8 {[%emt 0:01:07]} 59. Re6 {[%emt 0:01:21]} Qc1+ {[%emt 0:01:52]} 60. Re1 {[%emt 0:00:19]} Rd1 {[%emt 0:00:15]} 61. Qe8+ {[%emt 0:01:22]} Kh7 {[%emt 0:00:07]} 62. Qg6+ {[%emt 0:01:35]} Kg8 {[%emt 0:00:11]} 63. Qe6+ {[%emt 0:00:20]} Kh7 {[%emt 0:00:29]} 64. Qg6+ {[%emt 0:00:19]} Kg8 {[%emt 0:00:08]} 1/2-1/2

[Event "Austrian Women Bundesliga 2023-24"]
[Site "Austria"]
[Date "2024.03.24"]
[Round "6.16"]
[White "Landl, Margot"]
[Black "Heinrich, Vanessa"]
[Result "0-1"]
[ECO "B06"]
[WhiteElo "1962"]
[BlackElo "1773"]
[Annotator "NA RC"]
[PlyCount "76"]
[EventDate "2023.11.21"]
[EventType "team-tourn"]
[EventCountry "AUT"]
[SourceTitle "playchess.com"]
[Source "ChessBase"]
[SourceQuality "1"]
[TimeControl "40/5400+30:1800+30"]

1. e4 {[%emt 0:00:12]} g6 {[%emt 0:00:05]} 2. d4 {[%emt 0:00:28]} Bg7 {[%emt 0:00:05]} 3. Nc3 {[%emt 0:00:22]} d6 {[%emt 0:00:18]} 4. f4 {[%emt 0:01:36]} a6 {[%emt 0:00:22]} 5. Nf3 {[%emt 0:09:25]} b5 {[%emt 0:01:39]} 6. Bd3 {[%emt 0:05:32]} Nd7 {[%emt 0:07:45]} 7. Ne2 {[%emt 0:08:08]} c5 {[%emt 0:06:13]} 8. c3 {[%emt 0:00:49]} Qc7 {[%emt 0:04:04]} 9. O-O {[%emt 0:04:00]} h6 {[%emt 0:10:39]} 10. e5 {[%emt 0:13:53]} cxd4 {[%emt 0:07:45]} 11. e6 {[%emt 0:10:34]} Nc5 {[%emt 0:06:31]} 12. exf7+ {[%emt 0:00:20]} Kxf7 {[%emt 0:00:17]} 13. Nexd4 {[%emt 0:09:59]} Nxd3 {[%emt 0:05:11]} 14. Qxd3 {[%emt 0:00:05]} Bxd4+ {[%emt 0:10:06]} 15. Nxd4 {[%emt 0:01:08]} Qc5 {[%emt 0:02:45]} 16. Qf3 {[%emt 0:10:00]} Rb8 {[%emt 0:03:57]} 17. Be3 {[%emt 0:01:24]} Bb7 {[%emt 0:01:57]} 18. Qh3 {[%emt 0:01:26]} Qh5 {[%emt 0:08:22]} 19. Qe6+ {[%emt 0:02:09]} Kf8 {[%emt 0:09:14]} 20. f5 {[%emt 0:03:07]} Nf6 {[%emt 0:02:50]} 21. fxg6 {[%emt 0:07:01]} Qxg6 {[%emt 0:02:26]} 22. Rxf6+ {[%emt 0:06:50]} exf6 {[%emt 0:00:47]} 23. Qxd6+ {[%emt 0:00:04]} Kg7 {[%emt 0:03:42]} 24. Ne6+ {[%emt 0:01:26]} Kf7 {[%emt 0:01:47]} 25. Nf4 {[%emt 0:00:26]} Qe4 {[%emt 0:02:27]} 26. Bc5 {[%emt 0:00:50]} Rbe8 {[%emt 0:00:49]} 27. Qd7+ {[%emt 0:01:38]} Kg8 {[%emt 0:00:20]} 28. Qg4+ {[%emt 0:00:29]} Kf7 {[%emt 0:00:30]} 29. Qh5+ {[%emt 0:00:22]} Kg8 {[%emt 0:01:16]} 30. Rf1 {[%emt 0:01:04]} Re5 {[%emt 0:00:31]} 31. Qg4+ {[%emt 0:00:36]} Rg5 {[%emt 0:00:27]} 32. Qh3 {[%emt 0:00:13]} Rxc5 {[%emt 0:00:18]} 33. Ne6 {[%emt 0:00:25]} Re5 {[%emt 0:00:47]} 34. Qg3+ {[%emt 0:00:23]} Rg5 {[%emt 0:00:33]} 35. Qb8+ {[%emt 0:01:03]} Kf7 {[%emt 0:00:25]} 36. Nxg5+ {[%emt 0:00:25]} hxg5 {[%emt 0:00:10]} 37. Qc7+ {[%emt 0:00:27]} Kg6 {[%emt 0:00:23]} 38. Qg3 {[%emt 0:00:20]} Qe5 {[%emt 0:01:11]} 0-1

[Event "Austrian Women Bundesliga 2023-24"]
[Site "Austria"]
[Date "2024.03.24"]
[Round "6.17"]
[White "Novkovic, Julia"]
[Black "Berke, Ana"]
[Result "1/2-1/2"]
[ECO "C68"]
[WhiteElo "2096"]
[BlackElo "2066"]
[Annotator "NA RC"]
[PlyCount "60"]
[EventDate "2023.11.21"]
[EventType "team-tourn"]
[EventCountry "AUT"]
[SourceTitle "playchess.com"]
[Source "ChessBase"]
[SourceQuality "1"]
[TimeControl "40/5400+30:1800+30"]

1. e4 {[%emt 0:00:01]} e5 {[%emt 0:00:09]} 2. Nf3 {[%emt 0:00:10]} Nc6 {[%emt 0:00:07]} 3. Bb5 {[%emt 0:00:10]} a6 {[%emt 0:00:07]} 4. Bxc6 {[%emt 0:00:08]} dxc6 {[%emt 0:00:08]} 5. Nc3 {[%emt 0:00:30]} Bd6 {[%emt 0:00:58]} 6. d4 {[%emt 0:01:17]} Bg4 {[%emt 0:01:39]} 7. dxe5 {[%emt 0:00:41]} Bxf3 {[%emt 0:00:18]} 8. Qxf3 {[%emt 0:00:07]} Bxe5 {[%emt 0:00:06]} 9. Bf4 {[%emt 0:02:37]} Qe7 {[%emt 0:00:31]} 10. Bxe5 {[%emt 0:01:30]} Qxe5 {[%emt 0:00:04]} 11. Qg3 {[%emt 0:00:30]} Qxg3 {[%emt 0:00:07]} 12. hxg3 {[%emt 0:00:05]} Nf6 {[%emt 0:00:07]} 13. f3 {[%emt 0:00:49]} Rd8 {[%emt 0:00:14]} 14. Rd1 {[%emt 0:01:41]} Rxd1+ {[%emt 0:00:07]} 15. Nxd1 {[%emt 0:00:26]} h5 {[%emt 0:00:33]} 16. Ne3 {[%emt 0:01:23]} g6 {[%emt 0:00:13]} 17. Kf2 {[%emt 0:01:41]} Ke7 {[%emt 0:00:14]} 18. Rd1 {[%emt 0:00:26]} Rd8 {[%emt 0:00:07]} 19. Rxd8 {[%emt 0:00:11]} Kxd8 {[%emt 0:00:05]} 20. Ke2 {[%emt 0:00:57]} Ke7 {[%emt 0:00:06]} 21. Kd3 {[%emt 0:01:31]} Nd7 {[%emt 0:00:29]} 22. b3 {[%emt 0:02:01]} c5 {[%emt 0:00:35]} 23. f4 {[%emt 0:03:22]} c6 {[%emt 0:00:36]} 24. Kc4 {[%emt 0:01:40]} b5+ {[%emt 0:00:18]} 25. Kd3 {[%emt 0:00:22]} Kd6 {[%emt 0:00:16]} 26. c4 {[%emt 0:01:43]} Ke6 {[%emt 0:01:14]} 27. Nf1 {[%emt 0:01:55]} Nf6 {[%emt 0:01:03]} 28. Nd2 {[%emt 0:00:58]} Nd7 {[%emt 0:02:17]} 29. Nf3 {[%emt 0:01:35]} f6 {[%emt 0:00:43]} 30. Kc3 {[%emt 0:01:47]} Kf7 {[%emt 0:01:09]} 1/2-1/2

[Event "Austrian Women Bundesliga 2023-24"]
[Site "Austria"]
[Date "2024.03.24"]
[Round "6.18"]
[White "Kopinits, Anna-Christina"]
[Black "Rojickova, Monika"]
[Result "0-1"]
[ECO "A00"]
[WhiteElo "2170"]
[BlackElo "2056"]
[Annotator "RC"]
[PlyCount "92"]
[EventDate "2023.11.21"]
[EventType "team-tourn"]
[EventCountry "AUT"]
[SourceTitle "playchess.com"]
[Source "ChessBase"]
[SourceQuality "1"]
[TimeControl "40/5400+30:1800+30"]

1. Nc3 {[%emt 0:00:05]} d5 {[%emt 0:02:27]} 2. e4 {[%emt 0:00:12]} d4 {[%emt 0:01:05]} 3. Nce2 {[%emt 0:00:07]} e5 {[%emt 0:05:43]} 4. Ng3 {[%emt 0:00:16]} Be6 {[%emt 0:06:31]} 5. Nf3 {[%emt 0:00:15]} Bd6 {[%emt 0:03:26]} 6. Bb5+ {[%emt 0:00:30]} c6 {[%emt 0:02:14]} 7. Ba4 {[%emt 0:00:25]} Nd7 {[%emt 0:03:10]} 8. Bb3 {[%emt 0:00:30]} Nc5 {[%emt 0:07:36]} 9. Bxe6 {[%emt 0:01:18]} Nxe6 {[%emt 0:01:43]} 10. d3 {[%emt 0:01:37]} Ne7 {[%emt 0:01:51]} 11. O-O {[%emt 0:03:55]} Qd7 {[%emt 0:12:01]} 12. c3 {[%emt 0:01:57]} c5 {[%emt 0:02:47]} 13. Ng5 {[%emt 0:11:16]} Nxg5 {[%emt 0:07:17]} 14. Bxg5 {[%emt 0:00:14]} f6 {[%emt 0:00:05]} 15. Bd2 {[%emt 0:01:02]} O-O-O {[%emt 0:05:42]} 16. cxd4 {[%emt 0:08:55]} cxd4 {[%emt 0:00:52]} 17. a4 {[%emt 0:01:33]} Kb8 {[%emt 0:04:08]} 18. Qb3 {[%emt 0:06:46]} h5 {[%emt 0:05:47]} 19. Ne2 {[%emt 0:01:15]} g5 {[%emt 0:02:33]} 20. a5 {[%emt 0:02:27]} h4 {[%emt 0:09:28]} 21. a6 {[%emt 0:01:30]} b6 {[%emt 0:00:07]} 22. Rac1 {[%emt 0:01:48]} Rhg8 {[%emt 0:01:41]} 23. Rc2 {[%emt 0:08:13]} f5 {[%emt 0:04:41]} 24. exf5 {[%emt 0:00:26]} Qxf5 {[%emt 0:00:10]} 25. Ba5 {[%emt 0:06:52]} Qd7 {[%emt 0:08:33]} 26. Rfc1 {[%emt 0:04:07]} Rc8 {[%emt 0:00:07]} 27. Bd2 {[%emt 0:01:22]} Rxc2 {[%emt 0:01:15]} 28. Rxc2 {[%emt 0:00:30]} Qf5 {[%emt 0:00:20]} 29. Ba5 {[%emt 0:06:23]} Qd7 {[%emt 0:00:15]} 30. Kf1 {[%emt 0:06:54]} Rf8 {[%emt 0:00:45]} 31. Bb4 {[%emt 0:02:28]} Bxb4 {[%emt 0:00:28]} 32. Qxb4 {[%emt 0:00:05]} Rf7 {[%emt 0:00:58]} 33. Kg1 {[%emt 0:05:24]} Nd5 {[%emt 0:00:18]} 34. Qc4 {[%emt 0:00:53]} Rf6 {[%emt 0:00:31]} 35. b4 {[%emt 0:03:24]} Rf8 {[%emt 0:00:41]} 36. Qb3 {[%emt 0:03:30]} Qb5 {[%emt 0:00:10]} 37. h3 {[%emt 0:01:59]} Rd8 {[%emt 0:00:22]} 38. Rc4 {[%emt 0:02:20]} Qxa6 {[%emt 0:00:38]} 39. Kh2 {[%emt 0:00:06]} Qb7 {[%emt 0:00:38]} 40. Ng1 {[%emt 0:03:46]} Nf4 {[%emt 0:00:31]} 41. Nf3 {[%emt 0:31:27]} g4 {[%emt 0:16:47]} 42. Ne1 {[%emt 0:00:00]} gxh3 {[%emt 0:03:35]} 43. gxh3 {[%emt 0:00:00]} Qd7 {[%emt 0:03:08]} 44. Rc2 {[%emt 0:00:00]} Qxh3+ {[%emt 0:00:54]} 45. Kg1 {[%emt 0:00:00]} Qg4+ {[%emt 0:05:03]} 46. Kh1 {[%emt 0:00:00]} Rg8 {[%emt 0:00:54]} 0-1

[Event "Austrian Women Bundesliga 2023-24"]
[Site "Austria"]
[Date "2024.03.24"]
[Round "6.19"]
[White "Manko, Mariya"]
[Black "Kushka, Alena"]
[Result "1-0"]
[ECO "A56"]
[WhiteElo "2209"]
[BlackElo "2146"]
[Annotator "RC"]
[PlyCount "107"]
[EventDate "2023.11.21"]
[EventType "team-tourn"]
[EventCountry "AUT"]
[SourceTitle "playchess.com"]
[Source "ChessBase"]
[SourceQuality "1"]
[TimeControl "40/5400+30:1800+30"]

1. d4 {[%emt 0:00:02]} Nf6 {[%emt 0:00:04]} 2. c4 {[%emt 0:00:09]} c5 {[%emt 0:00:06]} 3. d5 {[%emt 0:00:06]} g6 {[%emt 0:00:05]} 4. Nc3 {[%emt 0:00:20]} Bg7 {[%emt 0:00:10]} 5. g3 {[%emt 0:00:52]} d6 {[%emt 0:00:55]} 6. Bg2 {[%emt 0:00:16]} O-O {[%emt 0:00:12]} 7. Nf3 {[%emt 0:00:07]} e6 {[%emt 0:00:08]} 8. O-O {[%emt 0:00:09]} exd5 {[%emt 0:00:26]} 9. cxd5 {[%emt 0:00:08]} Re8 {[%emt 0:00:31]} 10. Bf4 {[%emt 0:00:07]} h6 {[%emt 0:01:08]} 11. Qc1 {[%emt 0:00:20]} g5 {[%emt 0:00:20]} 12. Be3 {[%emt 0:00:07]} Bf5 {[%emt 0:08:24]} 13. h4 {[%emt 0:00:25]} g4 {[%emt 0:00:30]} 14. Nd2 {[%emt 0:00:57]} Rxe3 {[%emt 0:03:12]} 15. fxe3 {[%emt 0:04:00]} Bg6 {[%emt 0:00:14]} 16. Nc4 {[%emt 0:00:39]} Qe7 {[%emt 0:03:11]} 17. Nb5 {[%emt 0:00:19]} Ne8 {[%emt 0:05:34]} 18. a4 {[%emt 0:00:15]} Nd7 {[%emt 0:00:36]} 19. e4 {[%emt 0:00:11]} a6 {[%emt 0:10:12]} 20. Nc3 {[%emt 0:00:08]} Ne5 {[%emt 0:02:04]} 21. Ne3 {[%emt 0:03:56]} Nf6 {[%emt 0:11:00]} 22. Nf5 {[%emt 0:15:24]} Bxf5 {[%emt 0:00:05]} 23. Rxf5 {[%emt 0:00:06]} Ng6 {[%emt 0:05:56]} 24. h5 {[%emt 0:08:12]} Nf8 {[%emt 0:00:11]} 25. Qf4 {[%emt 0:04:23]} N8d7 {[%emt 0:05:13]} 26. Rf1 {[%emt 0:08:30]} Rf8 {[%emt 0:03:48]} 27. Nd1 {[%emt 0:03:17]} b5 {[%emt 0:01:57]} 28. Ne3 {[%emt 0:09:05]} Kh8 {[%emt 0:00:11]} 29. b3 {[%emt 0:03:04]} Kh7 {[%emt 0:01:54]} 30. Kh2 {[%emt 0:01:38]} Rg8 {[%emt 0:05:31]} 31. Kh1 {[%emt 0:08:27]} Rf8 {[%emt 0:00:30]} 32. axb5 {[%emt 0:12:04]} axb5 {[%emt 0:00:04]} 33. Rxf6 {[%emt 0:02:05]} Nxf6 {[%emt 0:04:58]} 34. Nf5 {[%emt 0:00:51]} Qe5 {[%emt 0:00:22]} 35. Qxe5 {[%emt 0:01:42]} dxe5 {[%emt 0:00:14]} 36. Ra1 Rb8 {[%emt 0:05:04]} 37. Ra7 {[%emt 0:03:58]} Kg8 {[%emt 0:00:05]} 38. Ne7+ {[%emt 0:02:00]} Kf8 {[%emt 0:00:20]} 39. Nc6 {[%emt 0:00:07]} Rc8 {[%emt 0:02:43]} 40. d6 {[%emt 0:05:55]} c4 {[%emt 0:06:22]} 41. bxc4 {[%emt 0:33:07]} bxc4 {[%emt 0:30:30]} 42. Rc7 {[%emt 0:02:27]} Ra8 {[%emt 0:00:32]} 43. d7 {[%emt 0:01:21]} Nxd7 {[%emt 0:00:08]} 44. Rxd7 {[%emt 0:00:06]} Ra1+ {[%emt 0:05:59]} 45. Bf1 {[%emt 0:00:00]} Bf6 {[%emt 0:00:00]} 46. Kg2 {[%emt 0:00:00]} c3 {[%emt 0:00:00]} 47. Nb4 {[%emt 0:00:00]} Bg5 {[%emt 0:00:00]} 48. Rc7 {[%emt 0:00:00]} Bd2 {[%emt 0:00:00]} 49. e3 {[%emt 0:00:00]} Rb1 {[%emt 0:00:00]} 50. Nd3 {[%emt 0:00:00]} f6 {[%emt 0:00:00]} 51. Be2 {[%emt 0:00:00]} Bxe3 {[%emt 0:03:18]} 52. Rxc3 {[%emt 0:00:00]} Bd4 {[%emt 0:02:03]} 53. Rc2 {[%emt 0:00:00]} Rb3 {[%emt 0:00:12]} 54. Nf2 {[%emt 0:00:00]} 1-0

[Event "Austrian Women Bundesliga 2023-24"]
[Site "Austria"]
[Date "2024.03.24"]
[Round "6.20"]
[White "Kejzar, Petra"]
[Black "Kurapova, Olga"]
[Result "1-0"]
[ECO "D23"]
[WhiteElo "2049"]
[BlackElo "1970"]
[Annotator "RC"]
[PlyCount "67"]
[EventDate "2023.11.21"]
[EventType "team-tourn"]
[EventCountry "AUT"]
[SourceTitle "playchess.com"]
[Source "ChessBase"]
[SourceQuality "1"]
[TimeControl "40/5400+30:1800+30"]

1. d4 {[%emt 0:00:03]} d5 {[%emt 0:00:07]} 2. c4 {[%emt 0:00:06]} dxc4 {[%emt 0:00:07]} 3. Nf3 {[%emt 0:00:22]} Nf6 {[%emt 0:00:33]} 4. g3 {[%emt 0:00:25]} Nc6 {[%emt 0:01:06]} 5. Bg2 {[%emt 0:02:22]} e5 {[%emt 0:01:04]} 6. Qa4 {[%emt 0:05:35]} Bb4+ {[%emt 0:16:13]} 7. Bd2 {[%emt 0:01:30]} Bxd2+ {[%emt 0:04:03]} 8. Nbxd2 {[%emt 0:01:50]} Bd7 {[%emt 0:03:58]} 9. dxe5 {[%emt 0:04:13]} Nxe5 {[%emt 0:02:16]} 10. Qc2 {[%emt 0:02:35]} Bc6 {[%emt 0:05:19]} 11. O-O {[%emt 0:06:40]} Nxf3+ {[%emt 0:02:49]} 12. exf3 {[%emt 0:06:26]} O-O {[%emt 0:03:02]} 13. Nxc4 {[%emt 0:00:23]} Qd5 {[%emt 0:04:38]} 14. b4 {[%emt 0:07:13]} Qh5 {[%emt 0:04:54]} 15. Qc3 {[%emt 0:03:28]} Rad8 {[%emt 0:05:12]} 16. Na5 {[%emt 0:04:29]} Bb5 {[%emt 0:03:35]} 17. Rfe1 {[%emt 0:01:12]} Nd5 {[%emt 0:02:52]} 18. Qc5 {[%emt 0:05:44]} Ba6 {[%emt 0:02:09]} 19. b5 {[%emt 0:08:32]} b6 {[%emt 0:00:47]} 20. Qc4 {[%emt 0:04:17]} Bc8 {[%emt 0:00:27]} 21. Nc6 {[%emt 0:00:41]} Rd6 {[%emt 0:00:03]} 22. f4 {[%emt 0:01:15]} Be6 {[%emt 0:00:51]} 23. Re5 {[%emt 0:02:49]} Nf6 {[%emt 0:05:52]} 24. Qc2 {[%emt 0:01:07]} Qh6 {[%emt 0:00:04]} 25. h4 {[%emt 0:06:29]} Nd7 {[%emt 0:02:18]} 26. Ne7+ {[%emt 0:01:30]} Kh8 {[%emt 0:00:01]} 27. Qxc7 {[%emt 0:00:42]} Rd2 {[%emt 0:02:50]} 28. Qc3 {[%emt 0:04:23]} Nxe5 {[%emt 0:08:36]} 29. Qxd2 {[%emt 0:01:14]} Nc4 {[%emt 0:00:31]} 30. Qb4 {[%emt 0:00:53]} Re8 {[%emt 0:01:24]} 31. Re1 {[%emt 0:00:49]} Rd8 {[%emt 0:05:55]} 32. Nc6 {[%emt 0:00:21]} Qf6 {[%emt 0:09:57]} 33. Nxd8 {[%emt 0:01:25]} Qxd8 {[%emt 0:00:07]} 34. Rxe6 {[%emt 0:00:33]} 1-0

[Event "Austrian Women Bundesliga 2023-24"]
[Site "Austria"]
[Date "2024.04.12"]
[Round "7"]
[White "Danielian, Elina"]
[Black "Teuschler, Barbara"]
[Result "1-0"]
[ECO "A15"]
[WhiteElo "2396"]
[BlackElo "2048"]
[Annotator "TA"]
[PlyCount "59"]
[EventDate "2023.11.21"]
[EventType "team-tourn"]
[EventCountry "AUT"]
[SourceTitle "playchess.com"]
[Source "ChessBase"]
[SourceQuality "1"]
[TimeControl "40/5400+30:1800+30"]

{[%evp 12,59,12,22,58,59,50,55,48,57,53,56,77,49,74,20,46,50,60,32,72,49,54,53,52,54,45,55,81,51,52,8,6,8,33,0,50,44,41,46,193,191,228,238,230,212,598,580,616,589]} 1. Nf3 {[%emt 0:00:03]} Nf6 {[%emt 0:00:18]} 2. c4 {[%emt 0:00:18]} b6 {[%emt 0:00:04]} 3. g3 {[%emt 0:01:42]} Bb7 {[%emt 0:00:04]} 4. Bg2 {[%emt 0:00:03]} g6 {[%emt 0:00:28]} 5. O-O {[%emt 0:00:24]} Bg7 {[%emt 0:00:03]} 6. d4 {[%emt 0:01:03]} O-O {[%emt 0:01:03]} 7. d5 {[%emt 0:01:51]} c6 {[%emt 0:02:41]} 8. Nc3 {[%emt 0:00:19]} cxd5 {[%emt 0:01:51]} 9. cxd5 {[%emt 0:00:07]} e6 {[%emt 0:02:10] White is slightly better.} 10. e4 {[%emt 0:01:58]} Na6 {[%emt 0:09:08]} 11. Re1 {[%emt 0:24:25]} Nc5 {[%emt 0:01:39]} 12. Bf4 {[%emt 0:03:10]} a5 {[%emt 0:24:57]} 13. Qd2 {[%emt 0:09:46] White is more active.} (13. Nd4 $16) 13... Re8 {[%emt 0:04:14]} 14. Bg5 {[%emt 0:00:38]} Qb8 {[%emt 0:00:57]} 15. Nd4 {[%emt 0:03:10]} exd5 {[%emt 0:10:46]} 16. exd5 {[%emt 0:00:52]} Rxe1+ $1 {[%emt 0:02:05]} 17. Rxe1 {[%emt 0:02:40]} Qf8 {[%emt 0:00:22]} 18. Ndb5 {[%emt 0:08:52]} Re8 {[%emt 0:00:55]} 19. Rxe8 {[%emt 0:02:50]} Nxe8 {[%emt 0:00:15]} 20. Bd8 {[%emt 0:21:16] aiming for Qe1.} Nd6 $1 {[%emt 0:00:43] Hoping for ...Nxb5.} 21. Bxb6 {[%emt 0:01:49]} Nc4 $132 {[%emt 0:00:22][%csl LRb6,LRd2][%mdl 2048] Black has counterplay} 22. Bxc5 {[%emt 0:00:05]} Qxc5 {[%emt 0:01:05]} 23. Qe2 {[%emt 0:02:36]} (23. Qe1 $5) 23... Nb6 {[%emt 0:09:05]} (23... Ba6 $11) 24. Qe8+ $14 {[%emt 0:04:29]} Bf8 {[%emt 0:00:03][%cal Ob7a6]} 25. h4 {[%emt 0:04:09]} h5 {[%emt 0:11:02] [#] This costs Black the game.} ({Black should play} 25... Ba6 $14 26. Ne4 Qc1+ (26... Qxb5 27. Ng5) 27. Kh2 Qc8 (27... Bxb5 $2 28. Ng5 $18) 28. Qxc8 Bxc8) 26. Ne4 $1 $18 {[%emt 0:02:19][%cal Bc3e4,Be4f6,Bf6e8][%mdl 32] A dynamic duo of knights.} ({Don't do} 26. d6 $6 Bxg2 27. Kxg2 Qc6+ 28. Qe4 Qc5 $14) 26... Qe7 {[%emt 0:08:15]} (26... Qxb5 $2 {loses.} 27. Nd6 $18) 27. Qxe7 {[%emt 0:00:55]} Bxe7 {[%emt 0:00:01] [#]} 28. d6 {[%emt 0:00:11]} Bf8 {[%emt 0:00:38]} (28... Bd8 {is more resistant.} 29. Nc5 Bxg2 30. Kxg2 f5) 29. Nf6+ {[%emt 0:00:07]} Kg7 {[%emt 0:00:12]} 30. Ne8+ {[%emt 0:00:05] Weighted Error Value: White=0.12 (very precise) /Black=0.45.  Mistake:       	White=1     	Black=3      Inaccurate:     	White=5     	Black=3      OK:         	White=7     	Black=2      Best:        	White=5     	Black=3      Strong:       	White=1     	Black=2} 1-0

[Event "Austrian Women Bundesliga 2023-24"]
[Site "Austria"]
[Date "2024.04.12"]
[Round "7"]
[White "Matnadze Bujiashvili, Ann"]
[Black "Stadlinger, Lea"]
[Result "1-0"]
[ECO "E06"]
[WhiteElo "2359"]
[BlackElo "1936"]
[Annotator "RC"]
[PlyCount "49"]
[EventDate "2023.11.21"]
[EventType "team-tourn"]
[EventCountry "AUT"]
[SourceTitle "playchess.com"]
[Source "ChessBase"]
[SourceQuality "1"]
[TimeControl "40/5400+30:1800+30"]

1. d4 {[%emt 0:00:06]} d5 {[%emt 0:00:04]} 2. g3 {[%emt 0:00:05]} e6 {[%emt 0:00:47]} 3. Bg2 {[%emt 0:00:06]} Nf6 {[%emt 0:08:27]} 4. Nf3 {[%emt 0:00:12]} Be7 {[%emt 0:01:04]} 5. c4 {[%emt 0:00:14]} O-O {[%emt 0:02:13]} 6. Nc3 {[%emt 0:00:09]} dxc4 {[%emt 0:04:05]} 7. Ne5 {[%emt 0:00:15]} Nbd7 {[%emt 0:08:52]} 8. Nxc4 {[%emt 0:00:35]} Rb8 {[%emt 0:11:06]} 9. O-O {[%emt 0:01:47]} b6 {[%emt 0:03:55]} 10. Nb5 {[%emt 0:18:31]} a6 {[%emt 0:01:52]} 11. Na7 {[%emt 0:00:58]} Bb7 {[%emt 0:00:54]} 12. Bxb7 {[%emt 0:03:55]} Rxb7 {[%emt 0:00:13]} 13. Nc6 {[%emt 0:00:03]} Qe8 {[%emt 0:00:55]} 14. Qc2 {[%emt 0:00:57]} Nd5 {[%emt 0:06:46]} 15. Bd2 {[%emt 0:03:43]} N7f6 {[%emt 0:09:04]} 16. N4e5 {[%emt 0:00:52]} Bd6 {[%emt 0:01:46]} 17. e4 {[%emt 0:04:25]} Ne7 {[%emt 0:02:55]} 18. Nxe7+ {[%emt 0:00:35]} Bxe7 {[%emt 0:01:17]} 19. Nc6 {[%emt 0:00:06]} Nd7 {[%emt 0:04:52]} 20. a3 {[%emt 0:01:41]} Kh8 {[%emt 0:13:41]} 21. Rac1 {[%emt 0:07:21]} a5 {[%emt 0:02:23]} 22. Bf4 {[%emt 0:07:08]} Bd6 {[%emt 0:03:58]} 23. e5 {[%emt 0:02:19]} Be7 {[%emt 0:00:29]} 24. Qe4 {[%emt 0:00:06]} f5 {[%emt 0:02:41]} 25. Qg2 {[%emt 0:02:53]} 1-0

[Event "Austrian Women Bundesliga 2023-24"]
[Site "Austria"]
[Date "2024.04.12"]
[Round "7"]
[White "Unuk, Laura"]
[Black "Cvitan, Ena"]
[Result "1/2-1/2"]
[ECO "D00"]
[WhiteElo "2341"]
[BlackElo "2252"]
[Annotator "RC"]
[PlyCount "20"]
[EventDate "2023.11.21"]
[EventType "team-tourn"]
[EventCountry "AUT"]
[SourceTitle "playchess.com"]
[Source "ChessBase"]
[SourceQuality "1"]
[TimeControl "40/5400+30:1800+30"]

1. d4 {[%emt 0:00:04]} d5 {[%emt 0:00:20]} 2. Bf4 {[%emt 0:00:28]} c5 {[%emt 0:01:53]} 3. e3 {[%emt 0:00:43]} Nc6 {[%emt 0:03:22]} 4. Nf3 {[%emt 0:07:26]} cxd4 {[%emt 0:00:31]} 5. exd4 {[%emt 0:07:08]} Nf6 {[%emt 0:02:56]} 6. c3 {[%emt 0:01:13]} Nh5 {[%emt 0:08:55]} 7. Be3 {[%emt 0:03:14]} Nf6 {[%emt 0:03:45]} 8. Bf4 {[%emt 0:07:11]} Nh5 {[%emt 0:00:37]} 9. Be3 {[%emt 0:04:20]} Nf6 {[%emt 0:00:13]} 10. Bf4 {[%emt 0:04:22]} Nh5 1/2-1/2